bitfinex/quotes_ETHUSD_20250906
["timestamp","ask_amount","ask_price","bid_price","bid_amount"]
[1757175015335,0.001,4280.6,4280.2,2.33633414]
[1757175015636,4.43569,4280.5,4280.2,2.33633414]
[1757175015840,0.1035,4280.3,4280.2,2.33633414]
[1757175016406,0.24469,4280.5,4280.3,2.33627257]
[1757175016628,0.1168,4280.0,4279.9,11.20025071]
[1757175016798,0.1168,4280.0,4279.9,3.03839794]
[1757175016799,6.2063,4280.0,4279.9,3.03839794]
[1757175017005,6.2063,4280.0,4279.9,2.33650318]
[1757175017546,6.1028,4280.0,4279.9,2.50871419]
[1757175017897,6.1028,4280.0,4279.9,2.81181419]
[1757175018099,1.9118,4280.0,4279.9,2.81181419]
[1757175018298,6.1018,4280.0,4279.9,3.27971419]
[1757175018644,1.9118,4280.0,4279.9,3.27971419]
[1757175018804,6.1018,4280.0,4279.9,2.81181419]
[1757175019006,6.1018,4280.0,4279.9,2.50871419]
[1757175019233,6.1018,4280.0,4279.9,3.27971419]
[1757175019616,6.1018,4280.0,4279.9,0.17221101]
[1757175019617,2.1977,4280.0,4279.9,0.17221101]
[1757175019814,2.1977,4280.0,4279.5,0.004]
[1757175019815,7.30037,4280.0,4279.5,0.004]
[1757175020135,4.19,4279.9,4279.5,0.004]
[1757175020310,1.0,4279.6,4279.5,0.004]
[1757175020514,5.4727,4279.6,4279.5,0.004]
[1757175021045,6.0986,4279.6,4279.5,0.004]
[1757175022050,5.4727,4279.6,4279.5,0.004]
[1757175022239,5.4727,4279.6,4279.5,0.17867625]
[1757175022563,5.4727,4279.6,4279.5,0.004]
[1757175023035,5.189,4279.6,4279.5,3.11172157]
[1757175023436,4.189,4279.6,4279.5,4.52256889]
[1757175024266,1.795,4280.0,4279.9,2.33650318]
[1757175024466,1.795,4280.0,4279.9,2.63960318]
[1757175024768,5.984,4280.0,4279.9,3.10750318]
[1757175024932,5.983,4280.0,4279.9,4.43831929]
[1757175025930,1.795,4280.0,4279.9,4.51831929]
[1757175026128,5.983,4280.0,4279.9,5.71999671]
[1757175026667,0.001,4280.6,4280.5,2.33617568]
[1757175026866,0.001,4280.6,4280.5,7.57805322]
[1757175026867,5.984,4280.6,4280.5,7.57805322]
[1757175027035,5.984,4280.6,4280.5,8.97795322]
[1757175027760,1.796,4280.6,4280.5,8.97795322]
[1757175027946,5.984,4280.6,4280.5,9.67972155]
[1757175028146,5.984,4280.6,4280.5,9.05082155]
[1757175028467,5.984,4280.6,4280.5,8.27982155]
[1757175028770,5.984,4280.6,4280.5,8.58292155]
[1757175029161,5.984,4280.6,4280.5,9.05082155]
[1757175029576,5.983,4280.6,4280.5,9.05082155]
[1757175030941,5.983,4280.6,4280.5,9.67972155]
[1757175031390,5.982,4280.6,4280.5,9.67972155]
[1757175032933,5.982,4280.6,4280.5,9.05082155]
[1757175034776,5.981,4280.6,4280.5,9.05082155]
[1757175034963,1.796,4280.6,4280.5,12.67972155]
[1757175035142,5.981,4280.6,4280.5,7.51784401]
[1757175036290,5.981,4280.6,4280.5,12.05082155]
[1757175036661,6.8928,4280.6,4280.5,0.78176833]
[1757175036863,6.9598,4280.6,4280.5,0.08]
[1757175038910,6.9598,4280.6,4279.0,0.004]
[1757175038911,6.8928,4280.6,4279.0,0.004]
[1757175039053,5.16187754,4279.8,4279.0,0.004]
[1757175039394,14.589,4279.7,4279.0,0.004]
[1757175039631,0.2837,4279.1,4279.0,0.004]
[1757175040085,4.4667,4279.1,4279.0,0.004]
[1757175040289,5.20206482,4279.1,4279.0,0.17605477]
[1757175040585,5.20206482,4279.1,4279.0,0.004]
[1757175041390,5.27126482,4279.1,4279.0,0.004]
[1757175041590,5.36489766,4279.1,4279.0,0.004]
[1757175043705,5.36489766,4279.1,4279.0,0.1789416]
[1757175044668,9.15689766,4279.1,4279.0,0.004]
[1757175044868,61.74689766,4279.1,4279.0,0.004]
[1757175047322,61.74689766,4279.1,4279.0,6e-08]
[1757175049715,61.74589766,4279.1,4279.0,6e-08]
[1757175050891,57.56389766,4279.1,4279.0,6e-08]
[1757175051099,61.74489766,4279.1,4279.0,6e-08]
[1757175051800,61.74589766,4279.1,4279.0,6e-08]
[1757175054224,61.67669766,4279.1,4279.0,6e-08]
[1757175054390,61.74589766,4279.1,4279.0,6e-08]
[1757175054922,61.67669766,4279.1,4279.0,6e-08]
[1757175055330,61.74589766,4279.1,4279.0,6e-08]
[1757175058227,55.81539766,4279.1,4279.0,0.28850006]
[1757175058442,55.81539766,4279.1,4279.0,0.72060006]
[1757175058602,56.99539766,4279.1,4279.0,1.34320006]
[1757175059003,7.40539766,4279.1,4279.0,1.34320006]
[1757175059317,7.40539766,4279.1,4279.0,0.72060006]
[1757175060137,3.22539766,4279.1,4279.0,0.72060006]
[1757175060337,7.40539766,4279.1,4279.0,0.72060006]
[1757175061041,7.50439766,4279.1,4279.0,6e-08]
[1757175062111,60.09439766,4279.1,4279.0,6e-08]
[1757175062513,59.99539766,4279.1,4279.0,0.28850006]
[1757175062747,52.81539766,4279.1,4279.0,1.34320006]
[1757175062915,4.40339766,4279.1,4279.0,1.34320006]
[1757175063113,4.30976482,4279.1,4279.0,1.34320006]
[1757175063304,4.62156482,4279.1,4279.0,6e-08]
[1757175063703,0.13176482,4279.1,4279.0,6e-08]
[1757175063909,55.591,4279.1,4279.0,6e-08]
[1757175064124,59.89976482,4279.1,4279.0,6e-08]
[1757175065047,60.20886482,4279.1,4279.0,6e-08]
[1757175065235,60.81346482,4279.1,4279.0,6e-08]
[1757175065641,60.90711104,4279.1,4279.0,6e-08]
[1757175066010,61.69911104,4279.1,4279.0,6e-08]
[1757175066216,61.74321104,4279.1,4279.0,6e-08]
[1757175067450,3.792,4279.0,4278.5,0.004]
[1757175067624,9.89476482,4278.9,4278.5,0.004]
[1757175067945,3.92276482,4278.9,4278.5,0.004]
[1757175068249,0.001,4279.6,4279.5,2.33672157]
[1757175068452,0.001,4279.6,4279.5,12.03026588]
[1757175068611,4.177,4279.6,4279.5,5.57039373]
[1757175068812,4.177,4279.6,4278.8,2.36609264]
[1757175069027,4.177,4279.6,4279.5,2.33672157]
[1757175071346,4.177,4279.6,4279.5,3.03876252]
[1757175072049,4.176,4279.6,4279.5,6.03876252]
[1757175077351,4.176,4279.6,4279.5,6.05976252]
[1757175077530,4.176,4279.6,4279.5,6.89941887]
[1757175080833,4.176,4279.6,4279.5,6.87841887]
[1757175082664,4.176,4279.6,4279.5,6.03876252]
[1757175086365,4.176,4279.6,4279.5,6.03976252]
[1757175087828,5.529,4279.6,4279.4,2.33672851]
[1757175088135,1.0428,4279.5,4279.4,2.33672851]
[1757175088553,1.353,4279.5,4279.4,2.33672851]
[1757175088986,1.353,4279.5,4279.0,0.004]
[1757175089142,4.773,4279.4,4279.0,0.004]
[1757175089537,4.172,4279.4,4279.3,2.33683079]
[1757175089773,4.4822,4279.4,4279.3,2.33683079]
[1757175090069,5.525,4279.4,4279.3,2.33683079]
[1757175090833,5.525,4279.4,4279.0,0.004]
[1757175090834,5.525,4279.4,4279.2,2.33687459]
[1757175091088,1.0428,4279.3,4279.2,2.33687459]
[1757175091474,1.353,4279.3,4279.2,2.33687459]
[1757175092678,1.353,4279.3,4279.0,2.34098751]
[1757175092679,1.353,4279.3,4279.0,0.004]
[1757175092884,4.171,4279.2,4279.0,0.004]
[1757175093040,1.796,4279.1,4279.0,0.004]
[1757175093240,3.149,4279.1,4279.0,0.004]
[1757175094681,3.149,4279.1,4279.0,2.34099462]
[1757175095063,2.7072,4279.1,4279.0,2.34099462]
[1757175095381,1.796,4279.1,4279.0,2.34099462]
[1757175095737,2.548,4279.1,4279.0,2.34099462]
[1757175096182,3.149,4279.1,4279.0,2.34099462]
[1757175098280,3.149,4279.1,4279.0,0.004]
[1757175101559,4.149,4279.1,4279.0,0.004]
[1757175104758,7.941,4279.1,4279.0,0.004]
[1757175105883,57.271,4279.1,4279.0,0.004]
[1757175107449,57.221,4279.1,4279.0,0.004]
[1757175109047,56.429,4279.1,4279.0,0.004]
[1757175109752,52.076,4279.1,4279.0,0.005]
[1757175109956,6.914,4279.1,4279.0,0.005]
[1757175110277,6.914,4279.1,4279.0,0.004]
[1757175110472,6.914,4279.1,4279.0,0.005]
[1757175112090,7.829,4279.1,4279.0,0.004]
[1757175112383,8.269,4279.1,4279.0,0.004]
[1757175112753,7.6528,4279.1,4279.0,0.004]
[1757175112967,6.914,4279.1,4279.0,0.004]
[1757175113369,6.915,4279.1,4279.0,0.004]
[1757175115874,6.913,4279.1,4279.0,0.004]
[1757175118018,6.913,4279.1,4279.0,0.005]
[1757175119284,7.2118,4279.1,4279.0,0.004]
[1757175119587,8.268,4279.1,4279.0,0.004]
[1757175120005,6.913,4279.1,4279.0,0.004]
[1757175122450,7.6518,4279.1,4279.0,0.004]
[1757175122646,8.268,4279.1,4279.0,0.004]
[1757175123022,8.28748007,4279.1,4279.0,0.004]
[1757175124967,57.61748007,4279.1,4279.0,0.004]
[1757175125166,58.40948007,4279.1,4279.0,0.004]
[1757175126829,58.40648007,4279.1,4279.0,0.004]
[1757175127024,9.07648007,4279.1,4279.0,0.004]
[1757175127222,14.69048007,4279.1,4279.0,0.004]
[1757175129945,64.02048007,4279.1,4279.0,0.004]
[1757175131867,67.02048007,4279.1,4279.0,0.004]
[1757175132054,3.9088,4279.0,4278.8,0.029]
[1757175132238,7.953,4278.9,4278.8,0.029]
[1757175132439,7.953,4278.9,4278.6,0.004]
[1757175132440,9.47070538,4278.9,4278.6,0.004]
[1757175132658,0.792,4278.8,4278.6,0.004]
[1757175132855,7.161,4278.7,4278.6,0.004]
[1757175133060,7.61547825,4278.7,4278.6,0.004]
[1757175133259,8.67897825,4278.7,4278.6,0.004]
[1757175133446,13.84893829,4278.7,4278.6,0.004]
[1757175134960,63.17893829,4278.7,4278.6,0.004]
[1757175135646,63.17893829,4278.7,4278.5,0.004]
[1757175135647,0.792,4278.2,4276.8,0.025]
[1757175135982,68.34889833,4278.7,4276.8,0.025]
[1757175135983,2.463,4277.9,4276.8,0.025]
[1757175136292,0.2963,4277.0,4276.8,0.025]
[1757175136489,6.17398968,4276.9,4276.8,0.025]
[1757175136783,7.23748968,4276.9,4276.8,0.025]
[1757175137084,7.33528036,4276.9,4276.8,0.025]
[1757175137982,57.45728036,4276.9,4276.8,0.025]
[1757175138980,60.45728036,4276.9,4276.8,0.025]
[1757175139291,0.792,4276.7,4276.5,0.004]
[1757175139446,8.16948658,4276.6,4276.5,0.004]
[1757175139648,8.62529145,4276.6,4276.5,0.004]
[1757175139981,9.68879145,4276.6,4276.5,0.004]
[1757175140184,4.53599145,4276.6,4276.5,0.0114]
[1757175141659,4.53699145,4276.6,4276.5,0.016]
[1757175141860,4.53699145,4276.6,4276.5,0.0114]
[1757175142765,4.53699145,4276.6,4276.5,0.004]
[1757175143001,4.53671707,4276.6,4276.5,0.004]
[1757175144858,4.53671707,4276.6,4276.5,0.0114]
[1757175145588,0.37671707,4276.6,4276.5,0.0114]
[1757175145789,4.31850487,4276.6,4276.5,0.0114]
[1757175145990,0.37671707,4276.6,4276.5,0.0114]
[1757175146193,4.31750487,4276.6,4276.5,0.0114]
[1757175146383,4.53471707,4276.6,4276.5,0.0114]
[1757175147310,0.37671707,4276.6,4276.5,0.0114]
[1757175147480,4.31750487,4276.6,4276.5,0.0114]
[1757175147802,4.53471707,4276.6,4276.5,0.0114]
[1757175151767,4.53471707,4276.6,4276.5,2.3497608]
[1757175152914,0.37671707,4276.6,4276.5,2.3497608]
[1757175153082,4.31650487,4276.6,4276.5,2.3497608]
[1757175153269,4.53371707,4276.6,4276.5,2.3497608]
[1757175153465,4.53371707,4276.6,4276.5,0.0114]
[1757175153699,4.5339459,4276.6,4276.5,2.3497608]
[1757175158099,5.3001459,4276.6,4276.5,0.004]
[1757175158304,5.8937459,4276.6,4276.5,0.004]
[1757175158703,5.0038459,4276.6,4276.5,0.004]
[1757175158906,5.0038459,4276.6,4276.5,2.3423608]
[1757175159210,4.5339459,4276.6,4276.5,0.004]
[1757175159368,5.8937459,4276.6,4276.5,0.004]
[1757175160315,4.5339459,4276.6,4276.5,0.004]
[1757175163613,5.5339459,4276.6,4276.5,0.004]
[1757175164485,5.5299459,4276.6,4276.5,0.004]
[1757175165418,5.9798459,4276.6,4276.5,0.004]
[1757175165899,6.9049459,4276.6,4276.5,0.004]
[1757175166716,6.90584037,4276.6,4276.5,0.004]
[1757175167226,5.52984037,4276.6,4276.5,2.3497608]
[1757175168086,5.52984037,4276.6,4276.5,0.0114]
[1757175168629,5.52984037,4276.6,4276.5,0.004]
[1757175169427,5.97974037,4276.6,4276.5,0.004]
[1757175169591,5.53002511,4276.6,4276.5,0.0114]
[1757175169933,5.53002511,4276.6,4276.5,0.004]
[1757175171029,5.53002511,4276.6,4276.5,2.3423608]
[1757175171261,5.53002511,4276.6,4276.5,0.004]
[1757175171747,5.52902511,4276.6,4276.5,0.0114]
[1757175172511,5.52902511,4276.6,4276.5,0.004]
[1757175175528,5.52902511,4276.6,4276.5,2.3423608]
[1757175176224,5.52902511,4276.6,4276.5,0.004]
[1757175179554,5.52502511,4276.6,4276.5,0.004]
[1757175179758,6.90002511,4276.6,4276.5,0.004]
[1757175181451,6.90019527,4276.6,4276.5,0.004]
[1757175182669,6.90019527,4276.6,4276.0,0.004]
[1757175182670,2.463,4276.4,4273.8,0.025]
[1757175182825,2.463,4274.4,4273.8,0.025]
[1757175183027,1.0939,4274.1,4273.8,0.025]
[1757175183338,1.0939,4274.1,4272.5,0.6337]
[1757175183339,0.792,4273.9,4272.5,0.51043174]
[1757175183550,0.792,4273.7,4271.4,0.4429]
[1757175183755,0.5732,4274.0,4271.4,0.4429]
[1757175183756,3.792,4273.5,4271.4,0.4429]
[1757175184071,49.33,4273.1,4271.4,0.4429]
[1757175184372,5.55880818,4273.0,4271.1,0.4429]
[1757175184669,0.56680818,4272.9,4271.4,0.4429]
[1757175184880,4.76680818,4272.8,4271.4,3.4429]
[1757175185064,0.56680818,4272.7,4271.4,0.4429]
[1757175185233,0.56680818,4272.7,4271.3,2.34117781]
[1757175185234,6.56380818,4272.6,4270.9,3.0]
[1757175185434,0.56680818,4272.5,4271.8,0.6587]
[1757175185769,4.63726805,4272.4,4271.8,0.6587]
[1757175185975,0.56680818,4272.3,4271.8,0.6587]
[1757175186279,4.63326805,4272.2,4271.9,0.6337]
[1757175186481,0.43626805,4272.1,4271.9,0.6337]
[1757175186671,4.63426805,4272.0,4271.9,2.97457876]
[1757175186847,4.63426805,4272.0,4271.9,3.27497876]
[1757175187755,4.63226805,4272.0,4271.9,3.71787876]
[1757175189293,4.63226805,4272.0,4271.9,0.9341]
[1757175189585,4.63226805,4272.0,4271.9,0.3004]
[1757175189758,4.63226805,4272.0,4271.9,3.27497876]
[1757175190373,5.40046805,4272.0,4271.8,0.2046136]
[1757175190571,0.43626805,4271.9,4271.8,0.025]
[1757175190770,0.43626805,4271.9,4271.8,2.36593356]
[1757175190971,0.74636805,4271.9,4271.8,0.025]
[1757175191165,0.43626805,4271.9,4271.8,3.24523356]
[1757175191851,0.74636805,4271.9,4271.8,0.025]
[1757175192151,0.74636805,4271.9,4271.8,2.36593356]
[1757175193259,0.74636805,4271.9,4271.8,0.19822104]
[1757175193457,0.43626805,4271.9,4271.8,6.4184546]
[1757175193672,4.62026805,4271.9,4271.8,6.8845546]
[1757175193846,3.98736805,4271.9,4271.8,6.8845546]
[1757175194845,1.798,4272.4,4272.3,2.34065959]
[1757175195064,5.984,4272.4,4272.3,3.68605959]
[1757175195489,1.823,4273.8,4273.7,2.33989283]
[1757175195695,6.006,4273.8,4273.7,2.33989283]
[1757175195853,6.006,4273.8,4273.7,3.21919283]
[1757175196985,6.006,4273.8,4273.7,2.62639283]
[1757175198276,6.006,4273.8,4273.7,2.47416779]
[1757175198471,0.6535,4274.8,4274.2,2.33961911]
[1757175198472,4.179,4274.3,4274.2,2.33961911]
[1757175198773,4.179,4274.3,4274.2,6.21891911]
[1757175201703,0.06369999,4275.1,4275.0,2.33918128]
[1757175201876,4.24069999,4275.1,4275.0,2.33918128]
[1757175202077,4.24069999,4275.1,4275.0,6.68458128]
[1757175203993,4.24069999,4275.1,4275.0,6.8615954]
[1757175204598,4.24069999,4275.1,4275.0,6.3954954]
[1757175204796,4.37027149,4275.1,4275.0,6.3954954]
[1757175205705,4.5862709,4275.1,4275.0,6.8615954]
[1757175206410,4.58638071,4275.1,4275.0,6.8615954]
[1757175207001,0.40938071,4275.1,4275.0,6.8615954]
[1757175207200,4.45175044,4275.1,4275.0,6.8615954]
[1757175207366,4.58138071,4275.1,4275.0,6.8615954]
[1757175207569,4.58138071,4275.1,4275.0,7.49344728]
[1757175209824,0.001,4275.2,4275.1,5.33912657]
[1757175210020,1.798,4275.4,4275.3,2.33901714]
[1757175210185,5.958,4275.4,4275.3,2.62551714]
[1757175210525,5.958,4275.4,4275.3,3.21831714]
[1757175211708,5.958,4275.4,4275.3,6.21831714]
[1757175211916,6.2681,4275.4,4275.3,5.33901714]
[1757175212095,5.958,4275.4,4275.3,5.33901714]
[1757175212652,6.2681,4275.4,4275.3,5.33901714]
[1757175212861,5.958,4275.4,4275.3,5.33901714]
[1757175212998,1.798,4275.4,4275.3,5.33901714]
[1757175213198,5.952,4275.4,4275.3,5.33901714]
[1757175213890,5.952,4275.4,4275.3,5.62551714]
[1757175214792,5.948,4275.4,4275.3,5.62551714]
[1757175216344,0.025,4275.8,4275.7,2.33879832]
[1757175216513,4.175,4275.8,4275.7,2.33879832]
[1757175216829,4.175,4275.8,4275.7,6.68419832]
[1757175217321,4.175,4275.8,4275.7,6.21809832]
[1757175217736,0.025,4275.8,4275.7,6.21809832]
[1757175217940,4.175,4275.8,4275.7,6.21809832]
[1757175220266,4.4777,4275.8,4275.7,5.33879832]
[1757175220751,4.175,4275.8,4275.7,5.33879832]
[1757175221129,4.175,4275.8,4275.7,5.65539832]
[1757175221462,4.175,4275.8,4275.7,6.27239832]
[1757175221655,4.39178637,4275.8,4275.7,6.27239832]
[1757175221854,4.52185819,4275.8,4275.7,6.27239832]
[1757175222442,4.52185819,4275.8,4275.7,5.33879832]
[1757175222763,5.28375819,4275.8,4275.7,5.33879832]
[1757175222963,4.52185819,4275.8,4275.7,5.33879832]
[1757175223332,4.52185819,4275.8,4275.7,6.27239832]
[1757175223928,4.52185819,4275.8,4275.7,2.33879832]
[1757175223929,5.28375819,4275.8,4275.7,2.33879832]
[1757175224363,5.28375819,4275.8,4275.7,2.18665761]
[1757175225326,5.28275819,4275.8,4275.7,2.18665761]
[1757175225645,6.28275819,4275.8,4275.7,2.18665761]
[1757175226753,5.82355819,4275.8,4275.7,2.18665761]
[1757175227168,6.28275819,4275.8,4275.7,2.18665761]
[1757175227546,6.28375819,4275.8,4275.7,2.18665761]
[1757175227949,6.28555094,4275.8,4275.7,2.18665761]
[1757175228545,5.82635094,4275.8,4275.7,2.18665761]
[1757175229559,5.82635094,4275.8,4275.7,7.35819302]
[1757175230984,5.52365094,4275.8,4275.7,7.67479302]
[1757175231782,5.82635094,4275.8,4275.7,7.35819302]
[1757175232862,5.82535094,4275.8,4275.7,7.35819302]
[1757175234087,5.52265094,4275.8,4275.7,7.35819302]
[1757175234258,1.37465094,4275.8,4275.7,7.35819302]
[1757175234464,5.52265094,4275.8,4275.7,8.29179302]
[1757175234784,5.52265094,4275.8,4275.7,8.76049302]
[1757175235167,1.3751374,4275.8,4275.7,8.76049302]
[1757175235368,5.5231374,4275.8,4275.7,11.76049302]
[1757175236196,5.5231374,4275.8,4275.7,11.29179302]
[1757175236672,5.5231374,4275.8,4275.7,11.76049302]
[1757175237460,5.5231374,4275.8,4275.7,11.29179302]
[1757175238992,1.3751374,4275.8,4275.7,11.29179302]
[1757175239200,5.5221374,4275.8,4275.7,11.29179302]
[1757175243815,5.5221374,4275.8,4275.7,10.67479302]
[1757175244198,5.5221374,4275.8,4275.7,10.35819302]
[1757175244403,5.5221374,4275.8,4275.7,10.67479302]
[1757175246116,6.2840374,4275.8,4275.7,10.35819302]
[1757175246293,5.8248374,4275.8,4275.7,5.18665761]
[1757175246494,6.2840374,4275.8,4275.7,5.18665761]
[1757175247495,5.8248374,4275.8,4275.7,5.18665761]
[1757175248324,5.5221374,4275.8,4275.7,5.18665761]
[1757175249031,5.5221374,4275.8,4275.7,5.50325761]
[1757175249610,5.5221374,4275.8,4275.7,5.18665761]
[1757175251496,5.5221374,4275.8,4275.7,5.47455761]
[1757175251700,5.5221374,4275.8,4275.7,6.12695761]
[1757175254150,5.5221374,4275.8,4275.7,5.18665761]
[1757175255348,5.5221374,4275.8,4275.7,5.47455761]
[1757175255550,5.52273741,4275.8,4275.7,5.47455761]
[1757175256463,5.52273741,4275.8,4275.7,6.12695761]
[1757175256967,5.52273741,4275.8,4275.7,5.18665761]
[1757175257114,5.83903741,4275.8,4275.7,5.18665761]
[1757175257448,6.28403741,4275.8,4275.7,5.18665761]
[1757175261322,6.28403741,4275.8,4275.7,5.88931353]
[1757175262769,6.91643741,4275.8,4275.7,0.70265592]
[1757175263270,6.28403741,4275.8,4275.7,0.70265592]
[1757175263470,6.91643741,4275.8,4275.7,0.70265592]
[1757175263779,2.76943741,4275.8,4275.2,0.004]
[1757175263981,4.49173741,4275.7,4275.2,0.004]
[1757175264144,2.14673741,4275.6,4275.2,0.004]
[1757175264346,0.3163,4275.3,4275.2,0.004]
[1757175264669,4.80803741,4275.3,4275.2,0.004]
[1757175265035,5.88543741,4275.3,4275.2,0.004]
[1757175266178,5.88525138,4275.3,4275.2,0.004]
[1757175270791,9.67725138,4275.3,4275.2,0.004]
[1757175270958,0.792,4275.2,4275.1,0.004]
[1757175271160,1.14155138,4275.2,4275.1,0.004]
[1757175271359,2.53525138,4275.2,4275.1,0.004]
[1757175271852,51.86525138,4275.2,4275.1,0.004]
[1757175272985,2.53525138,4275.2,4275.1,0.004]
[1757175273981,51.86525138,4275.2,4275.1,0.004]
[1757175274583,51.86468173,4275.2,4275.1,0.004]
[1757175275546,57.32768173,4275.2,4275.1,0.004]
[1757175275983,0.792,4275.0,4274.8,0.004]
[1757175276182,5.28098173,4274.9,4274.8,0.004]
[1757175276362,6.67468173,4274.9,4274.8,0.004]
[1757175276966,56.00468173,4274.9,4274.8,0.004]
[1757175279781,59.00468173,4274.9,4274.8,0.004]
[1757175280492,59.00299574,4274.9,4274.8,0.004]
[1757175283173,61.46599574,4274.9,4274.8,0.004]
[1757175285863,56.24859574,4274.9,4274.8,0.004]
[1757175286066,60.82719574,4274.9,4274.8,0.004]
[1757175286970,11.49719574,4274.9,4274.8,0.004]
[1757175287567,12.49719574,4274.9,4274.8,0.004]
[1757175289982,12.49743635,4274.9,4274.8,0.004]
[1757175291106,8.35843635,4274.9,4274.8,0.004]
[1757175291303,12.36595984,4274.9,4274.8,0.004]
[1757175291508,8.35856437,4274.9,4274.8,0.004]
[1757175291713,12.49656437,4274.9,4274.8,0.004]
[1757175292387,3.3718,4274.8,4274.7,0.004]
[1757175292712,5.51746437,4274.8,4274.7,0.004]
[1757175292912,5.80826437,4274.8,4274.7,0.004]
[1757175293275,2.26246437,4274.8,4274.7,1.3819]
[1757175293498,6.40046437,4274.8,4274.7,1.3819]
[1757175296342,2.14566437,4274.8,4274.7,3.72124545]
[1757175296620,6.28166437,4274.8,4274.7,3.72124545]
[1757175299410,6.28166437,4274.8,4274.7,4.39760168]
[1757175299411,6.28066437,4274.8,4274.7,4.39760168]
[1757175299819,6.28066437,4274.8,4274.7,5.10040904]
[1757175301432,6.28219045,4274.8,4274.7,8.10040904]
[1757175301784,6.28219045,4274.8,4274.7,7.42405281]
[1757175302507,2.14719045,4274.8,4274.7,7.42405281]
[1757175302693,6.28119045,4274.8,4274.7,7.42405281]
[1757175305592,6.28119045,4274.8,4274.7,6.96665281]
[1757175305794,7.01159045,4274.8,4274.7,0.70680736]
[1757175306798,6.57199045,4274.8,4274.7,0.004]
[1757175306998,6.57199045,4274.8,4274.7,2.34334545]
[1757175307712,6.28119045,4274.8,4274.7,2.63364545]
[1757175309166,6.28119045,4274.8,4274.7,3.26384545]
[1757175309629,0.001,4275.1,4275.0,2.33918128]
[1757175309829,0.001,4275.2,4275.1,5.33912657]
[1757175310142,0.001,4275.2,4275.1,6.69222657]
[1757175310506,1.799,4276.1,4275.6,2.33885302]
[1757175310706,1.461,4275.7,4275.6,2.33885302]
[1757175310940,1.461,4275.7,4275.6,8.10703701]
[1757175311099,1.461,4275.7,4275.6,8.25744891]
[1757175312308,0.001,4275.7,4275.6,8.25744891]
[1757175313845,4.131,4275.7,4275.6,8.25744891]
[1757175315443,4.131,4275.7,4275.6,6.39766492]
[1757175315648,4.131,4275.7,4275.6,6.84236492]
[1757175316615,0.001,4275.7,4275.6,6.84236492]
[1757175316942,4.13,4275.7,4275.6,6.84236492]
[1757175317863,0.001,4275.7,4275.6,6.84236492]
[1757175318035,1e-08,4275.8,4275.7,5.33879832]
[1757175318235,4.12900001,4275.8,4275.6,0.42459169]
[1757175318408,1.388,4275.7,4275.3,2.33901568]
[1757175318613,1.0753,4275.6,4274.7,0.004]
[1757175318851,4.128,4275.5,4275.1,0.70280078]
[1757175319051,1e-08,4275.8,4275.1,0.70280078]
[1757175319349,1e-08,4275.8,4275.7,2.62819832]
[1757175319551,1e-08,4275.8,4275.7,5.62819832]
[1757175319747,4.12800001,4275.8,4275.7,6.69189832]
[1757175320113,1e-08,4275.8,4275.7,6.69189832]
[1757175320312,4.12800001,4275.8,4275.7,8.24228179]
[1757175320850,4.12800001,4275.8,4275.7,7.79758179]
[1757175321051,4.12800001,4275.8,4275.7,6.24719832]
[1757175321656,1e-08,4275.8,4275.7,6.69189832]
[1757175321836,4.12700001,4275.8,4275.7,6.69189832]
[1757175323371,4.12700001,4275.8,4275.7,5.62819832]
[1757175323730,4.12700001,4275.8,4275.7,5.33879832]
[1757175323937,4.91140001,4275.8,4275.7,5.33879832]
[1757175324751,4.43970001,4275.8,4275.7,5.33879832]
[1757175326072,4.91140001,4275.8,4275.7,5.33879832]
[1757175326242,5.25984434,4275.8,4275.7,5.33879832]
[1757175328186,0.34844434,4275.8,4275.7,6.24719832]
[1757175328480,4.12500001,4275.8,4275.7,7.55090596]
[1757175328844,4.12500001,4275.8,4275.7,8.25350264]
[1757175329042,4.12500001,4275.8,4275.7,7.80880264]
[1757175329274,1e-08,4275.8,4275.7,7.80880264]
[1757175329581,4.12500001,4275.8,4275.7,7.55090596]
[1757175329740,4.12500001,4275.8,4275.7,7.10620596]
[1757175329941,4.12500001,4275.8,4275.7,5.62819832]
[1757175330161,4.6556114,4275.8,4275.7,5.33879832]
[1757175330398,4.43770001,4275.8,4275.7,5.33879832]
[1757175330677,4.43670001,4275.8,4275.7,5.33879832]
[1757175332274,4.12400001,4275.8,4275.7,5.62819832]
[1757175332497,4.43670001,4275.8,4275.7,5.33879832]
[1757175332659,5.51200001,4275.8,4275.6,0.004]
[1757175332858,0.95219685,4275.7,4275.6,0.004]
[1757175333453,2.52859685,4275.7,4275.6,0.004]
[1757175334552,2.55295188,4275.7,4275.6,0.004]
[1757175335090,51.88295188,4275.7,4275.6,0.004]
[1757175335457,0.792,4275.6,4274.6,0.004]
[1757175335653,1.37415709,4275.4,4274.6,0.004]
[1757175335857,0.3127,4275.2,4274.6,0.004]
[1757175336094,0.66129685,4275.2,4274.6,0.004]
[1757175336289,1.73659685,4275.2,4274.6,0.004]
[1757175336757,1.73659685,4275.2,4275.1,1e-08]
[1757175336956,51.06659685,4275.2,4275.1,1e-08]
[1757175337165,51.08970785,4275.2,4275.1,1e-08]
[1757175337398,54.88170785,4275.2,4275.1,1e-08]
[1757175337605,3.792,4275.1,4274.6,0.004]
[1757175337908,3.792,4274.9,4274.3,0.004]
[1757175338094,1.1047,4274.4,4274.3,0.004]
[1757175338253,5.57529685,4274.4,4274.3,1e-08]
[1757175338599,5.57529685,4274.4,4274.2,1e-08]
[1757175338600,0.792,4274.3,4274.2,1e-08]
[1757175338767,4.14059685,4274.3,4274.2,1e-08]
[1757175338967,5.70444448,4274.3,4274.2,1e-08]
[1757175339970,59.15644448,4274.3,4274.2,1e-08]
[1757175340455,55.03444448,4274.3,4274.2,1e-08]
[1757175340656,51.43084448,4274.3,4274.2,1e-08]
[1757175340870,54.28914448,4274.3,4274.2,1e-08]